bitfinex/quotes_SOLUSD_20250818
["timestamp","ask_amount","ask_price","bid_price","bid_amount"]
[1755490387703,0.06,182.71,182.7,15.10621557]
[1755490388077,0.74,182.71,182.7,15.10621557]
[1755490388906,0.06,182.71,182.7,27.97642689]
[1755490389818,0.06,182.71,182.7,20.57966931]
[1755490390303,0.06,182.71,182.7,15.10621557]
[1755490390913,0.74,182.71,182.7,15.10621557]
[1755490391211,0.74,182.71,182.7,54.38621557]
[1755490391886,0.74,182.71,182.7,15.10621557]
[1755490392079,6.21315417,182.71,182.7,15.10621557]
[1755490392290,6.21315417,182.71,182.64,0.03]
[1755490392501,0.68,182.7,182.64,0.03]
[1755490392699,26.0,182.68,182.62,0.03]
[1755490392882,0.68,182.67,182.62,0.03]
[1755490393081,4.29424357,182.67,182.62,0.03]
[1755490393391,30.29424357,182.67,182.62,0.03]
[1755490393586,4.29424357,182.66,182.62,0.03]
[1755490393810,0.68,182.66,182.62,0.03]
[1755490394008,0.68,182.65,182.62,0.03]
[1755490396004,5.47525186,182.64,182.62,0.03]
[1755490396490,0.69,182.63,182.62,0.03]
[1755490397211,0.69,182.65,182.62,0.03]
[1755490397395,0.69,182.63,182.62,0.03]
[1755490400009,6.16555166,182.63,182.62,0.03]
[1755490400396,5.475306,182.64,182.62,0.03]
[1755490400608,6.16494467,182.66,182.62,0.03]
[1755490401114,0.69,182.65,182.62,0.03]
[1755490401714,5.47494467,182.66,182.62,0.03]
[1755490401715,0.69,182.64,182.62,0.03]
[1755490403500,6.16494467,182.66,182.62,0.03]
[1755490403895,5.47494467,182.66,182.62,0.03]
[1755490404221,0.69,182.65,182.62,0.03]
[1755490404607,5.47494467,182.66,182.62,0.03]
[1755490404809,5.47438911,182.67,182.63,15.10621557]
[1755490405008,6.16438911,182.67,182.63,15.10621557]
[1755490405209,6.16438911,182.67,182.63,15.82621557]
[1755490406494,5.4741171,182.68,182.65,15.10621557]
[1755490406839,0.06,182.69,182.67,15.10621557]
[1755490407145,0.06,182.69,182.67,15.82621557]
[1755490407844,0.06,182.69,182.67,27.97731715]
[1755490408021,0.06,182.69,182.68,8.11675758]
[1755490408505,0.06,182.69,182.68,23.22297315]
[1755490409325,0.06,182.69,182.68,28.69702613]
[1755490410313,0.06,182.69,182.68,28.8391877]
[1755490413037,0.06,182.69,182.68,54.8391877]
[1755490413333,0.06,182.69,182.68,94.0991877]
[1755490413508,0.06,182.69,182.68,93.95702613]
[1755490414819,0.06,182.69,182.68,80.36621557]
[1755490415436,0.06,182.69,182.68,54.36621557]
[1755490416363,0.06,182.69,182.68,60.56026855]
[1755490416512,0.06,182.69,182.68,15.82621557]
[1755490416709,0.06,182.69,182.68,55.08621557]
[1755490416941,0.06,182.69,182.68,60.56026855]
[1755490418835,0.06,182.69,182.68,67.95702613]
[1755490419040,0.06,182.69,182.68,60.56026855]
[1755490424052,0.06,182.69,182.68,59.84026855]
[1755490424253,0.75,182.69,182.68,54.36621557]
[1755490425726,0.75,182.69,182.68,15.10621557]
[1755490426146,0.06,182.69,182.68,15.10621557]
[1755490426372,0.77,182.69,182.68,15.10621557]
[1755490427621,6.24375335,182.69,182.61,0.03]
[1755490427826,0.71,182.68,182.64,15.10621557]
[1755490428047,0.71,182.68,182.66,15.10621557]
[1755490428432,0.71,182.67,182.66,15.10621557]
[1755490428755,0.71,182.67,182.65,15.10621557]
[1755490430029,5.47410825,182.68,182.65,15.10621557]
[1755490430346,0.71,182.66,182.65,15.10621557]
[1755490430936,6.18410825,182.68,182.65,15.10621557]
[1755490431142,0.06,182.69,182.65,15.10621557]
[1755490431342,0.71,182.67,182.65,15.10621557]
[1755490431955,0.71,182.66,182.65,15.10621557]
[1755490432259,0.71,182.68,182.65,15.10621557]
[1755490432430,0.06,182.69,182.65,15.10621557]
[1755490432769,0.71,182.67,182.65,15.10621557]
[1755490433970,5.47413174,182.68,182.65,15.10621557]
[1755490434457,6.18413174,182.68,182.65,15.10621557]
[1755490435132,0.71,182.68,182.65,15.10621557]
[1755490435531,6.18405583,182.68,182.65,15.10621557]
[1755490435743,5.47405583,182.68,182.65,15.10621557]
[1755490436067,0.71,182.67,182.65,15.10621557]
[1755490437753,6.18446018,182.67,182.65,15.10621557]
[1755490439548,0.71,182.66,182.65,15.10621557]
[1755490439964,0.71,182.66,182.64,15.10621557]
[1755490440461,4.32719829,182.68,182.64,15.10621557]
[1755490440965,4.32719829,182.68,182.64,15.79621557]
[1755490441162,3.61719829,182.68,182.66,15.10621557]
[1755490441350,3.61719829,182.68,182.66,15.79621557]
[1755490441554,5.47419316,182.68,182.66,15.79621557]
[1755490441754,9.09139145,182.68,182.66,15.79621557]
[1755490442050,3.61719829,182.68,182.67,0.69]
[1755490442249,0.06,182.69,182.68,15.10621557]
[1755490445147,0.06,182.69,182.68,15.79621557]
[1755490447452,0.06,182.69,182.66,15.79621557]
[1755490447855,0.06,182.69,182.67,0.69]
[1755490448376,0.06,182.69,182.68,0.69]
[1755490449280,3.68847723,182.69,182.66,21.27075472]
[1755490449474,0.06,182.69,182.67,0.69]
[1755490449775,3.68847723,182.69,182.67,0.69]
[1755490450472,0.06,182.69,182.67,0.69]
[1755490452371,0.06,182.69,182.66,54.32621557]
[1755490452372,0.77,182.69,182.66,54.32621557]
[1755490452673,3.6284041,182.68,182.67,15.10621557]
[1755490453762,0.06,182.69,182.67,15.10621557]
[1755490455757,0.06,182.69,182.67,15.79621557]
[1755490457346,0.06,182.69,182.67,55.01621557]
[1755490457772,0.06,182.69,182.67,15.79621557]
[1755490457974,0.06,182.69,182.67,55.01621557]
[1755490458587,0.06,182.69,182.67,54.32621557]
[1755490458970,0.06,182.69,182.67,55.04621557]
[1755490459656,0.06,182.69,182.68,0.72]
[1755490459962,3.68971264,182.69,182.68,0.72]
[1755490460671,3.68971264,182.69,182.67,54.32621557]
[1755490460977,0.06,182.69,182.67,55.04621557]
[1755490462156,0.06,182.69,182.68,54.30621557]
[1755490462355,3.69044923,182.69,182.68,54.30621557]
[1755490462554,0.06,182.69,182.68,62.42297315]
[1755490462757,0.06,182.69,182.68,67.89702613]
[1755490463689,0.06,182.69,182.68,68.0391877]
[1755490463852,0.06,182.71,182.7,41.24837714]
[1755490464054,0.06,182.71,182.7,88.47248009]
[1755490464285,0.06,182.71,182.7,89.19248009]
[1755490464484,0.06,182.71,182.7,87.26917625]
[1755490464873,0.06,182.71,182.7,94.11858846]
[1755490465064,0.06,182.71,182.7,86.72183088]
[1755490465471,0.06,182.71,182.7,94.11858846]
[1755490465778,0.06,182.71,182.7,94.66593383]
[1755490465977,0.06,182.71,182.7,94.11858846]
[1755490466402,0.06,182.71,182.7,15.82621557]
[1755490466702,0.06,182.71,182.7,15.10621557]
[1755490466890,4.38795453,182.71,182.68,15.10621557]
[1755490467201,4.32795453,182.7,182.68,15.10621557]
[1755490467497,0.06,182.71,182.69,0.72]
[1755490467803,0.06,182.71,182.68,23.22297315]
[1755490467961,3.62751108,182.7,182.68,23.22297315]
[1755490468298,0.06,182.71,182.68,15.82621557]
[1755490468466,3.62768203,182.7,182.68,15.82621557]
[1755490468657,0.06,182.71,182.68,15.82621557]
[1755490468869,3.62768203,182.7,182.68,15.10621557]
[1755490469091,3.62768203,182.69,182.68,15.10621557]
[1755490470694,3.62768203,182.69,182.67,39.6]
[1755490470695,4.32768203,182.69,182.66,15.10621557]
[1755490470860,3.62768203,182.68,182.66,15.10621557]
[1755490471070,0.7,182.69,182.66,15.10621557]
[1755490471261,3.62844165,182.68,182.66,15.10621557]
[1755490471566,0.7,182.69,182.66,15.10621557]
[1755490471890,3.62850726,182.68,182.66,15.10621557]
[1755490472072,0.7,182.69,182.66,15.10621557]
[1755490472269,3.62851266,182.68,182.66,15.10621557]
[1755490472470,0.7,182.69,182.66,15.10621557]
[1755490472675,3.62830231,182.68,182.66,15.10621557]
[1755490472881,0.7,182.69,182.66,15.10621557]
[1755490473085,3.62841659,182.68,182.66,15.10621557]
[1755490473274,0.7,182.69,182.66,15.10621557]
[1755490473473,3.62856137,182.68,182.66,15.10621557]
[1755490473691,0.7,182.69,182.66,15.10621557]
[1755490473868,3.62856137,182.68,182.66,15.10621557]
[1755490474069,5.47366326,182.7,182.66,15.82621557]
[1755490474268,3.62833749,182.69,182.66,15.82621557]
[1755490474470,3.62833749,182.68,182.66,15.82621557]
[1755490474669,6.17366326,182.7,182.66,15.82621557]
[1755490474871,3.62849162,182.69,182.66,15.82621557]
[1755490475069,6.17366326,182.7,182.66,15.82621557]
[1755490477299,5.47366326,182.7,182.68,15.10621557]
[1755490477801,5.47366326,182.7,182.68,15.82621557]
[1755490478389,5.53315417,182.71,182.68,15.82621557]
[1755490478777,6.23315417,182.71,182.68,15.82621557]
[1755490484486,5.53315417,182.71,182.68,15.82621557]
[1755490485986,6.23315417,182.71,182.66,15.82621557]
[1755490486194,6.23315417,182.71,182.68,15.10621557]
[1755490486609,4.03702506,182.7,182.66,15.79621557]
[1755490486783,4.03702506,182.7,182.68,15.10621557]
[1755490487480,9.51076727,182.7,182.68,15.10621557]
[1755490487800,5.47374221,182.7,182.68,15.10621557]
[1755490488195,3.63384395,182.69,182.68,15.10621557]
[1755490488882,4.32384395,182.69,182.68,15.10621557]
[1755490489100,8.36068427,182.69,182.68,15.10621557]
[1755490489696,13.83443762,182.69,182.68,15.10621557]
[1755490490007,13.83421864,182.69,182.68,15.10621557]
[1755490490508,13.83400499,182.69,182.68,15.10621557]
[1755490493118,13.14400499,182.69,182.68,15.10621557]
[1755490493286,13.14400499,182.69,182.68,0.69]
[1755490496129,13.14400499,182.69,182.68,15.79621557]
[1755490496711,13.14400499,182.69,182.68,15.10621557]
[1755490499227,3.63384395,182.7,182.69,15.10621557]
[1755490499624,3.63384395,182.7,182.69,15.79621557]
[1755490499816,9.10729769,182.7,182.69,15.79621557]
[1755490500832,3.63384395,182.7,182.69,15.79621557]
[1755490501420,3.63384395,182.7,182.69,23.19297315]
[1755490502702,3.63384395,182.7,182.69,15.79621557]
[1755490503640,13.83787311,182.7,182.66,0.69]
[1755490503935,13.83787311,182.7,182.65,15.10621557]
[1755490503936,8.36419839,182.69,182.65,15.10621557]
[1755490504121,7.67419839,182.68,182.64,0.03]
[1755490504321,7.67419839,182.67,182.64,0.03]
[1755490504518,3.63384395,182.66,182.64,0.03]
[1755490504723,5.47495209,182.65,182.64,0.03]
[1755490504934,9.79879604,182.65,182.64,0.03]
[1755490506426,13.83691023,182.65,182.64,0.03]
[1755490506620,13.14691023,182.65,182.64,0.03]
[1755490507025,9.10879604,182.65,182.64,0.03]
[1755490507226,13.14674002,182.65,182.64,0.03]
[1755490508045,9.10879604,182.65,182.64,0.03]
[1755490508222,7.67115374,182.65,182.64,0.03]
[1755490509516,7.6728472,182.65,182.64,0.03]
[1755490509842,13.14779929,182.65,182.64,0.03]
[1755490510420,13.14868918,182.65,182.64,0.03]
[1755490512650,13.83868918,182.65,182.64,0.03]
[1755490513018,13.14868918,182.65,182.64,0.03]
[1755490516048,3.63384395,182.65,182.64,23.22297315]
[1755490516255,3.63384395,182.68,182.65,15.10621557]
[1755490516436,0.06,182.71,182.67,7.39675758]
[1755490516637,7.67929202,182.7,182.68,8.08675758]
[1755490516833,7.67929202,182.69,182.68,22.50297315]
[1755490517030,7.67929202,182.69,182.68,15.10621557]
[1755490517330,3.6375975,182.69,182.68,15.10621557]
[1755490517530,3.6375975,182.69,182.68,23.19297315]
[1755490517854,3.6375975,182.69,182.68,15.79621557]
[1755490518147,3.6375975,182.69,182.68,23.19297315]
[1755490520063,3.6375975,182.7,182.69,15.10621557]
[1755490520280,0.06,182.71,182.69,23.19297315]
[1755490520559,0.06,182.71,182.7,23.19297315]
[1755490522343,0.06,182.71,182.7,28.66642689]
[1755490524736,0.06,182.71,182.7,21.26966931]
[1755490524943,0.06,182.71,182.7,7.39675758]
[1755490525664,0.06,182.71,182.7,0.69]
[1755490525833,0.06,182.71,182.7,7.39675758]
[1755490526456,0.06,182.71,182.69,22.50297315]
[1755490526647,0.73,182.71,182.69,15.10621557]
[1755490526839,4.7715744,182.71,182.69,15.10621557]
[1755490527046,8.40903608,182.71,182.69,15.10621557]
[1755490527238,4.36746168,182.71,182.69,15.10621557]
[1755490529165,0.73,182.71,182.69,15.10621557]
[1755490529371,8.41160096,182.71,182.69,15.10621557]
[1755490529580,4.36866763,182.71,182.69,15.10621557]
[1755490530078,3.69866763,182.71,182.69,15.10621557]
[1755490531552,3.69866763,182.71,182.69,15.79621557]
[1755490533098,3.69866763,182.71,182.69,15.10621557]
[1755490533404,3.69866763,182.71,182.7,15.79621557]
[1755490533405,0.06,182.71,182.7,15.79621557]
[1755490533999,0.06,182.71,182.7,15.10621557]
[1755490535202,3.69866763,182.71,182.7,15.10621557]
[1755490537269,3.69293101,182.71,182.7,15.10621557]
[1755490540897,3.69293101,182.71,182.7,15.79621557]
[1755490541097,0.06,182.72,182.7,15.79621557]
[1755490541679,0.06,182.72,182.71,15.79621557]
[1755490541881,0.06,182.72,182.71,23.19297315]
[1755490542610,0.06,182.72,182.71,22.50297315]
[1755490542787,0.06,182.72,182.71,23.19297315]
[1755490543910,0.06,182.72,182.71,62.95297315]
[1755490544834,0.06,182.72,182.71,54.86621557]
[1755490545142,0.06,182.72,182.71,15.10621557]
[1755490545712,0.73,182.72,182.7,39.74]
[1755490546730,0.06,182.72,182.69,15.10621557]
[1755490546930,0.73,182.72,182.69,15.10621557]
[1755490547101,6.20297622,182.72,182.69,15.79621557]
[1755490548138,5.53297622,182.72,182.69,15.79621557]
[1755490548303,0.06,182.72,182.69,15.10621557]
[1755490548635,0.06,182.72,182.7,8.08675758]
[1755490548802,0.06,182.72,182.7,7.39675758]
[1755490549003,0.06,182.72,182.71,0.69]
[1755490549207,0.06,182.72,182.71,8.08675758]
[1755490549634,0.06,182.72,182.71,23.19297315]
[1755490551414,0.06,182.72,182.71,28.66612732]
[1755490552527,0.06,182.72,182.71,21.26936974]
[1755490552737,0.06,182.72,182.71,28.66612732]
[1755490553621,0.06,182.72,182.71,28.80828889]
[1755490554217,0.06,182.72,182.71,29.3556043]
[1755490554825,0.06,182.72,182.71,28.80828889]
[1755490555139,0.06,182.72,182.71,21.41153131]
[1755490555359,0.06,182.72,182.71,28.80828889]
[1755490555635,0.06,182.72,182.71,21.41153131]
[1755490555817,0.06,182.72,182.71,28.80828889]
[1755490557513,0.06,182.72,182.71,108.20828889]
[1755490558133,0.06,182.72,182.71,110.40133189]
[1755490559751,0.73,182.72,182.71,15.10621557]
[1755490559957,4.3673377,182.72,182.71,15.10621557]
[1755490560248,4.3673377,182.72,182.69,0.03]
[1755490560249,4.3673377,182.72,182.7,39.76]
[1755490560431,8.34833605,182.71,182.7,39.76]
[1755490560633,13.82172818,182.71,182.69,39.79]
[1755490560828,3.6373377,182.7,182.69,54.89621557]
[1755490561014,4.3073377,182.7,182.69,54.89621557]
[1755490562535,3.6373377,182.7,182.69,54.89621557]
[1755490563744,4.3073377,182.7,182.69,54.89621557]
[1755490567451,4.3073377,182.7,182.69,15.13621557]
[1755490568849,9.78079144,182.7,182.69,15.13621557]
[1755490572545,13.81122724,182.7,182.69,0.03]
[1755490574671,18.352391,182.7,182.69,1e-08]
[1755490574963,26.0,182.68,182.67,1e-08]
[1755490575173,33.6677735,182.68,182.66,1e-08]
[1755490575455,12.86950955,182.67,182.66,1e-08]
[1755490576171,8.3377735,182.67,182.65,1e-08]
[1755490576332,26.0,182.64,182.63,0.03]
[1755490576644,26.0,182.64,182.62,0.03]
[1755490576645,31.47555166,182.63,182.62,0.03]
[1755490576847,39.82332516,182.63,182.59,0.03]
[1755490577049,8.3477735,182.62,182.59,0.03]
[1755490578361,30.3173377,182.62,182.59,0.03]
[1755490578569,39.8126121,182.62,182.59,0.03]
[1755490579160,35.79318919,182.62,182.59,0.03]
[1755490579464,79.3525057,182.62,182.59,0.03]
[1755490580343,75.33318919,182.62,182.59,0.03]
[1755490581764,9.11318919,182.62,182.61,0.7]
[1755490581970,5.47585149,182.62,182.61,0.7]
[1755490582272,5.47585149,182.62,182.61,0.03]
[1755490582869,5.47555166,182.63,182.61,0.03]
[1755490583251,9.08813421,182.63,182.61,0.03]
[1755490583484,5.47555166,182.63,182.61,0.03]
[1755490585583,0.06,182.62,182.61,0.03]
[1755490588167,0.74,182.62,182.61,0.03]
[1755490589572,6.21585149,182.62,182.61,0.03]
[1755490589778,9.82365791,182.62,182.61,0.03]
[1755490589977,6.21585149,182.62,182.61,0.03]
[1755490593952,9.82444688,182.62,182.61,0.03]
[1755490594153,5.53585149,182.62,182.61,0.7]
[1755490595284,5.53585149,182.62,182.61,0.03]
[1755490595788,0.06,182.62,182.61,0.7]
[1755490596085,0.06,182.62,182.61,15.80621557]
[1755490596266,0.06,182.62,182.61,23.20297315]
[1755490597676,0.06,182.62,182.61,15.80621557]
[1755490597881,0.06,182.62,182.61,23.20297315]
[1755490598180,0.06,182.62,182.61,28.67912451]
[1755490600589,0.06,182.62,182.61,21.28236693]
[1755490600790,0.06,182.62,182.61,28.67912451]
[1755490601673,0.06,182.62,182.61,21.28236693]
[1755490601875,0.06,182.62,182.61,28.67912451]
[1755490604158,0.06,182.62,182.61,15.80621557]
[1755490604969,0.06,182.62,182.61,15.13621557]
[1755490606399,0.06,182.62,182.61,15.79621557]
[1755490606593,0.06,182.62,182.61,15.13621557]
[1755490610484,0.06,182.62,182.61,15.79621557]
[1755490611373,0.06,182.62,182.61,23.19297315]
[1755490612694,0.06,182.62,182.61,21.27236693]
[1755490613182,0.06,182.62,182.61,28.66912451]
[1755490614390,0.06,182.62,182.61,68.08912451]
[1755490614600,0.06,182.62,182.61,94.23128608]
[1755490618111,0.06,182.64,182.63,41.10621557]
[1755490618292,0.06,182.64,182.63,49.19268988]
[1755490618681,0.06,182.64,182.63,49.85268988]
[1755490619014,0.06,182.64,182.63,55.32824154]
[1755490619715,0.06,182.64,182.63,57.52188554]
[1755490619928,0.06,182.64,182.63,50.12512796]
[1755490620099,0.06,182.64,182.63,57.52188554]
[1755490621100,0.06,182.64,182.63,97.14188554]
[1755490622793,0.06,182.64,182.63,176.54188554]
[1755490622993,0.06,182.64,182.63,175.99433038]
[1755490626017,0.06,182.64,182.63,168.5975728]
[1755490626219,0.06,182.64,182.63,96.59433038]
[1755490627438,0.06,182.64,182.63,70.59433038]
[1755490627834,0.06,182.64,182.63,71.14188554]
[1755490629233,0.06,182.66,182.65,41.24837714]
[1755490629436,0.06,182.66,182.65,88.71262992]
[1755490629935,0.06,182.66,182.65,89.37262992]
[1755490630641,0.06,182.66,182.65,97.04122601]
[1755490634231,1e-08,182.66,182.65,97.04122601]
[1755490634616,1e-08,182.66,182.65,89.60446843]
[1755490634844,1e-08,182.66,182.65,97.00122601]
[1755490641734,1e-08,182.66,182.65,89.60446843]
[1755490642058,1e-08,182.66,182.65,97.00122601]
[1755490643056,1e-08,182.66,182.65,96.34122601]
[1755490643255,1e-08,182.66,182.65,70.28122601]
[1755490643549,1e-08,182.66,182.65,96.28122601]
[1755490645664,1e-08,182.66,182.65,97.00122601]
[1755490648573,1e-08,182.66,182.65,94.80758201]
[1755490649775,1e-08,182.66,182.65,94.08758201]
[1755490650475,1e-08,182.66,182.65,94.80758201]
[1755490651580,1e-08,182.66,182.65,94.08758201]
[1755490653153,1e-08,182.66,182.65,94.80758201]
[1755490653483,1e-08,182.66,182.65,94.08758201]
[1755490655486,1e-08,182.66,182.65,94.80758201]
[1755490659086,1e-08,182.66,182.65,68.80758201]
[1755490659464,1e-08,182.66,182.65,71.00098601]
[1755490661964,0.06,182.68,182.67,48.50297315]
[1755490662167,0.06,182.68,182.67,88.41040841]
[1755490662396,0.06,182.68,182.67,89.13040841]
[1755490662791,0.06,182.68,182.67,91.32369141]
[1755490664488,0.06,182.68,182.67,96.94020563]
[1755490664790,0.06,182.68,182.67,96.22020563]
[1755490665480,0.06,182.68,182.67,96.94020563]
[1755490670289,0.06,182.68,182.67,93.53163706]
[1755490670806,0.06,182.68,182.67,94.22163706]
[1755490672494,0.06,182.7,182.68,15.24837714]
[1755490672697,0.06,182.72,182.71,41.10621557]
[1755490672884,0.06,182.72,182.71,80.76837714]
[1755490673207,0.78,182.72,182.71,85.47656615]
[1755490673417,0.78,182.72,182.71,54.76837714]
[1755490673620,0.78,182.72,182.71,19.95656615]
[1755490673912,0.78,182.72,182.71,59.49656615]
[1755490674514,0.78,182.72,182.71,64.96972032]
[1755490677992,0.78,182.72,182.71,60.26153131]
[1755490678194,0.78,182.72,182.71,64.96972032]
[1755490678396,0.78,182.72,182.71,60.26153131]
[1755490678708,0.78,182.72,182.71,64.96972032]
[1755490682325,0.06,182.72,182.71,64.96972032]
[1755490682704,0.78,182.72,182.71,64.96972032]
[1755490684557,0.78,182.72,182.71,60.26153131]
[1755490684842,0.78,182.72,182.71,64.96972032]
[1755490686458,0.06,182.72,182.71,64.96972032]
[1755490687456,0.06,182.72,182.71,65.65972032]
[1755490698763,0.06,182.72,182.71,64.96972032]
[1755490699351,0.72,182.72,182.71,64.96972032]
[1755490699755,0.72,182.72,182.71,15.10621557]
[1755490699957,4.37792476,182.72,182.71,59.15440458]
[1755490700141,4.37792476,182.72,182.71,59.91936974]
[1755490700142,0.72,182.72,182.71,59.91936974]
[1755490700347,4.37882244,182.72,182.71,64.62755875]
[1755490703163,3.71882244,182.72,182.71,64.62755875]
[1755490706891,4.37882244,182.72,182.71,64.62755875]
[1755490707061,3.71882244,182.72,182.71,64.62755875]
[1755490708891,4.37882244,182.72,182.71,64.62755875]
[1755490709188,3.71882244,182.72,182.71,64.62755875]
[1755490709791,4.37882244,182.72,182.71,15.10621557]
[1755490710160,4.37882244,182.72,182.71,54.44621557]
[1755490710361,4.37882244,182.72,182.71,15.10621557]
[1755490711861,9.85167708,182.72,182.71,15.10621557]
[1755490712059,13.91572556,182.72,182.71,15.10621557]
[1755490712289,9.85167708,182.72,182.7,15.10621557]
[1755490712459,3.65882244,182.71,182.7,15.10621557]
[1755490712663,4.31882244,182.71,182.69,15.10621557]
[1755490712861,4.31882244,182.7,182.69,15.10621557]
[1755490715191,9.79227618,182.7,182.69,15.10621557]
[1755490715558,9.79227618,182.7,182.68,0.03]
[1755490715763,4.31882244,182.69,182.68,0.03]
[1755490718392,3.65882244,182.69,182.68,4.73818901]
[1755490718568,3.65882244,182.69,182.68,0.03]
[1755490718868,3.65882244,182.69,182.68,4.73818901]
[1755490719180,3.65882244,182.69,182.68,5.42818901]
[1755490719881,3.65882244,182.69,182.68,4.73818901]
[1755490722089,3.65882244,182.69,182.68,0.03]
[1755490722473,4.31882244,182.69,182.68,0.03]
[1755490723003,3.65882244,182.69,182.68,0.03]
[1755490725586,4.31882244,182.69,182.68,0.03]
[1755490727484,9.79257579,182.69,182.68,0.03]
[1755490727878,13.8638462,182.69,182.68,0.03]
[1755490729509,9.79257579,182.69,182.68,0.03]
[1755490731388,49.13257579,182.69,182.68,0.03]
[1755490731708,53.20036133,182.69,182.68,0.03]
[1755490732208,53.20414314,182.69,182.68,0.03]
[1755490732515,49.13257579,182.69,182.68,0.03]
[1755490733094,13.86611585,182.69,182.68,0.03]
[1755490733405,53.20611585,182.69,182.68,0.03]
[1755490734123,26.0,182.67,182.66,0.03]
[1755490734300,29.65882244,182.67,182.66,0.03]
[1755490734500,30.33882244,182.67,182.66,0.03]
[1755490734987,34.41520077,182.67,182.66,0.03]
[1755490735189,34.41522426,182.67,182.66,0.03]
[1755490735388,30.33882244,182.67,182.66,0.03]
[1755490736222,35.81317509,182.67,182.66,0.03]
[1755490742327,39.88772167,182.67,182.64,0.03]
[1755490742492,43.67882244,182.66,182.64,0.03]
[1755490742838,3.65882244,182.65,182.64,0.03]
[1755490742991,4.33882244,182.65,182.64,0.03]
[1755490743520,30.33882244,182.65,182.64,0.03]
[1755490743687,69.67882244,182.65,182.64,0.03]
[1755490744324,75.15377453,182.65,182.64,0.03]
[1755490751525,79.23218928,182.65,182.64,0.03]
[1755490751911,79.22943408,182.65,182.64,0.03]
[1755490752111,79.2292823,182.65,182.64,0.03]
[1755490754109,79.2292823,182.65,182.58,14.91121557]
[1755490754309,8.40851847,182.64,182.58,14.91121557]
[1755490754510,42.97882244,182.63,182.58,14.91121557]
[1755490754732,3.65882244,182.62,182.58,14.91121557]
[1755490754939,3.65882244,182.61,182.58,14.91121557]
[1755490755112,39.32,182.63,182.58,14.91121557]
[1755490755307,0.68,182.64,182.37,26.83021828]
[1755490755308,26.0,182.49,182.37,26.83021828]
[1755490755524,30.53019193,182.45,182.3,4.70818901]
[1755490755705,30.53019193,182.41,182.28,4.70818901]
[1755490756026,5.483358,182.37,182.29,0.71]
[1755490756206,42.98284059,182.36,182.3,14.911216]
[1755490756402,3.66284059,182.35,182.31,0.71]
[1755490756618,3.64140547,182.34,182.32,41.92212561]
[1755490756815,39.32,182.35,182.33,55.09386986]
[1755490757026,39.32,182.35,182.34,0.71]
[1755490757217,51.52193065,182.35,182.32,0.71]
[1755490757419,7.67173872,182.34,182.32,0.71]
[1755490757611,46.99173872,182.33,182.3,0.71]
[1755490757809,7.67173872,182.32,182.3,0.71]
[1755490758013,3.62967327,182.31,182.26,15.10621557]
[1755490758220,42.96967327,182.3,182.23,5.4873844]
[1755490758542,3.62967327,182.29,182.27,7.39166994]
[1755490758842,10.01460087,182.34,182.24,15.10621557]
[1755490758843,4.53019193,182.34,182.24,15.10621557]
[1755490759014,46.97945656,182.33,182.24,15.10621557]
[1755490759215,7.63327722,182.32,182.25,0.71]
[1755490759540,3.61907547,182.31,182.25,0.71]
[1755490759735,39.34,182.31,182.25,0.71]
[1755490759934,39.34,182.31,182.3,7.39166994]
[1755490760110,42.95929077,182.31,182.3,8.10166994]
[1755490760511,42.95929077,182.31,182.3,0.71]
[1755490761130,3.61929077,182.31,182.3,8.10166994]
[1755490761323,3.61929077,182.31,182.3,28.69334903]
[1755490761636,5.57245064,182.34,182.31,15.10621557]
[1755490761824,5.57245064,182.34,182.33,7.39166994]
[1755490762030,5.57245064,182.34,182.33,28.69244647]
[1755490762031,3.41245064,182.34,182.33,28.69244647]
[1755490762221,3.25245064,182.34,182.33,28.69244647]
[1755490764134,3.25245064,182.34,182.33,27.98244647]
[1755490765522,3.25245064,182.34,182.28,7.53383151]
[1755490765523,46.91462764,182.34,182.29,7.39166994]
[1755490765833,8.39041124,182.33,182.29,7.39166994]